bitfinex/quotes_BTCUSD_20241202
["timestamp","ask_amount","ask_price","bid_price","bid_amount"]
[1733166022726,0.64280437,95733.0,95732.0,0.00791329]
[1733166025252,0.6395363,95733.0,95732.0,0.00791329]
[1733166025548,0.64280412,95733.0,95732.0,0.00791329]
[1733166026223,0.77360412,95733.0,95732.0,0.00791329]
[1733166026448,0.87643558,95733.0,95732.0,0.00791329]
[1733166026672,0.97928079,95733.0,95732.0,0.00791329]
[1733166026917,0.97928079,95733.0,95732.0,0.00191329]
[1733166027152,0.97928079,95733.0,95732.0,0.00291329]
[1733166027379,0.97928079,95733.0,95732.0,0.00391329]
[1733166027848,0.97928079,95733.0,95732.0,0.00291329]
[1733166028350,0.87644933,95733.0,95732.0,0.00191329]
[1733166028578,0.87944933,95733.0,95732.0,0.00191329]
[1733166029039,0.87944982,95733.0,95732.0,0.00191329]
[1733166029264,0.6306223,95732.0,95731.0,7.9e-07]
[1733166029497,0.83956728,95732.0,95731.0,0.00017636]
[1733166030172,0.63956728,95732.0,95731.0,0.00017636]
[1733166030402,0.83956728,95732.0,95731.0,0.00017636]
[1733166030623,0.63956728,95732.0,95731.0,0.00017636]
[1733166030853,0.83956728,95732.0,95731.0,0.00017636]
[1733166031745,0.84251322,95732.0,95731.0,0.00017636]
[1733166032236,0.73873582,95732.0,95731.0,0.00017636]
[1733166032464,0.73673582,95732.0,95731.0,0.00017636]
[1733166032690,0.73873582,95732.0,95731.0,0.00017636]
[1733166032917,0.74373582,95732.0,95731.0,0.00017636]
[1733166033144,0.73873582,95732.0,95731.0,0.00017636]
[1733166033371,0.84156728,95732.0,95731.0,0.00017636]
[1733166033609,0.84156728,95732.0,95731.0,3.6e-07]
[1733166033838,0.6395493,95727.0,95726.0,3.6e-07]
[1733166034077,0.7138223,95720.0,95719.0,8e-07]
[1733166034297,0.6395753,95715.0,95714.0,7e-07]
[1733166034517,0.74568882,95715.0,95714.0,7e-07]
[1733166035462,0.74768882,95715.0,95714.0,7e-07]
[1733166037569,0.94768882,95715.0,95714.0,7e-07]
[1733166038707,0.94768882,95715.0,95710.0,5e-07]
[1733166038708,0.55619435,95711.0,95710.0,5e-07]
[1733166038927,0.66229412,95711.0,95710.0,5e-07]
[1733166039612,0.66229412,95711.0,95692.0,6.4e-07]
[1733166039613,0.4306223,95693.0,95692.0,6.4e-07]
[1733166039824,0.76619061,95693.0,95692.0,2.4e-07]
[1733166040055,0.68673084,95693.0,95692.0,2.4e-07]
[1733166040270,0.78388563,95693.0,95692.0,2.4e-07]
[1733166040724,0.58388563,95693.0,95692.0,2.4e-07]
[1733166040985,0.51118563,95693.0,95692.0,2.4e-07]
[1733166041198,0.44831732,95693.0,95692.0,2.4e-07]
[1733166041830,0.4306223,95693.0,95692.0,2.4e-07]
[1733166042064,0.43389171,95693.0,95692.0,2.4e-07]
[1733166042356,0.43489171,95693.0,95692.0,0.00900024]
[1733166042621,0.43389171,95693.0,95692.0,2.4e-07]
[1733166043059,0.43989171,95693.0,95692.0,0.00100024]
[1733166043277,0.44289171,95693.0,95692.0,0.00100024]
[1733166043961,0.43989171,95693.0,95692.0,0.00100024]
[1733166044179,0.44289171,95693.0,95692.0,0.00100024]
[1733166044618,0.4601275,95693.0,95692.0,0.00100024]
[1733166044893,0.26989171,95693.0,95692.0,0.00100024]
[1733166045137,0.01226941,95693.0,95692.0,0.00100024]
[1733166045359,0.009,95693.0,95692.0,0.00100024]
[1733166045794,0.003,95693.0,95692.0,2.4e-07]
[1733166046017,0.209001,95693.0,95692.0,0.00100024]
[1733166046266,0.006,95693.0,95692.0,0.10384545]
[1733166046495,0.009,95693.0,95692.0,0.15264856]
[1733166046734,0.009,95693.0,95692.0,0.15664856]
[1733166046967,0.006,95693.0,95692.0,0.15664856]
[1733166047425,0.006,95693.0,95692.0,0.15964856]
[1733166047877,0.006,95693.0,95692.0,0.15664856]
[1733166048092,0.38322335,95698.0,95692.0,0.15264856]
[1733166048321,0.417987,95697.0,95693.0,0.10284521]
[1733166048723,0.417987,95697.0,95694.0,0.00320311]
[1733166048968,0.417987,95697.0,95695.0,0.10284521]
[1733166050844,0.417987,95697.0,95695.0,0.10584521]
[1733166051299,0.417987,95697.0,95695.0,0.11084521]
[1733166051528,0.417987,95697.0,95695.0,0.10584521]
[1733166051987,0.417987,95697.0,95695.0,0.10984521]
[1733166052217,0.417987,95697.0,95695.0,0.004]
[1733166052218,0.00231198,95696.0,95695.0,0.004]
[1733166052447,0.00231198,95696.0,95695.0,0.007]
[1733166052958,0.417987,95697.0,95695.0,0.007]
[1733166052959,0.417987,95697.0,95695.0,0.10684521]
[1733166053179,0.208993,95697.0,95696.0,0.10284521]
[1733166053413,0.2107256,95697.0,95696.0,0.10284521]
[1733166054115,0.21303758,95697.0,95695.0,0.002]
[1733166054602,0.2107256,95697.0,95695.0,0.004]
[1733166054823,0.2107256,95697.0,95695.0,0.002]
[1733166055054,0.21303761,95697.0,95695.0,0.002]
[1733166055285,0.209001,95693.0,95692.0,0.00086654]
[1733166055529,0.209001,95693.0,95692.0,0.10371175]
[1733166055998,0.209001,95693.0,95692.0,0.10690367]
[1733166057454,0.209001,95693.0,95692.0,0.11090367]
[1733166058498,0.29239095,95693.0,95692.0,0.00805846]
[1733166058739,0.29239095,95693.0,95692.0,0.01105846]
[1733166058970,0.29239095,95693.0,95692.0,0.00786654]
[1733166062405,0.29565993,95693.0,95692.0,0.00786654]
[1733166062885,0.21226998,95693.0,95692.0,0.00786654]
[1733166063114,0.21458216,95693.0,95692.0,0.00786654]
[1733166064039,0.38881451,95693.0,95692.0,0.00786654]
[1733166064310,0.46989228,95693.0,95692.0,0.00786654]
[1733166064776,0.47162488,95693.0,95692.0,0.00086654]
[1733166065001,0.71075853,95693.0,95692.0,0.00086654]
[1733166065257,0.71075853,95693.0,95692.0,0.00286654]
[1733166065524,0.83775853,95693.0,95692.0,0.00586654]
[1733166065765,0.83775853,95693.0,95692.0,0.00086654]
[1733166065766,0.84582707,95693.0,95692.0,0.00086654]
[1733166065997,0.84582707,95693.0,95692.0,0.00186654]
[1733166066225,0.84582707,95693.0,95692.0,0.00286654]
[1733166066457,0.84582707,95693.0,95692.0,0.00186654]
[1733166066917,0.84255809,95693.0,95692.0,0.00186654]
[1733166067142,0.84582746,95693.0,95692.0,0.00186654]
[1733166067373,0.84582746,95693.0,95692.0,0.00086654]
[1733166067605,0.86982746,95693.0,95692.0,0.00086654]
[1733166067848,0.87382746,95693.0,95692.0,0.00086654]
[1733166068108,0.86882746,95693.0,95692.0,0.00086654]
[1733166068336,0.87382746,95693.0,95692.0,0.00086654]
[1733166068573,0.87582746,95693.0,95692.0,0.00086654]
[1733166068809,0.84782746,95693.0,95692.0,0.00086654]
[1733166069042,0.84582746,95693.0,95692.0,0.00086654]
[1733166069274,0.85282746,95693.0,95692.0,0.00086654]
[1733166069994,0.89285393,95693.0,95692.0,5.4e-07]
[1733166070224,0.88958456,95693.0,95692.0,5.4e-07]
[1733166070475,0.86658456,95693.0,95692.0,5.4e-07]
[1733166071686,0.86658456,95693.0,95651.0,0.01777546]
[1733166071687,0.08338995,95653.0,95630.0,0.41291681]
[1733166071936,0.209121,95638.0,95637.0,0.10284521]
[1733166072164,0.209121,95638.0,95637.0,0.00318526]
[1733166072400,0.29482449,95638.0,95636.0,0.00231616]
[1733166072618,0.0023136,95637.0,95636.0,0.00231616]
[1733166073074,0.0023136,95637.0,95636.0,0.00931616]
[1733166073397,0.2599359,95637.0,95636.0,0.00931616]
[1733166073629,0.2576223,95637.0,95636.0,0.00931616]
[1733166074313,0.2576223,95637.0,95636.0,0.00731616]
[1733166074807,0.210121,95638.0,95636.0,0.01031616]
[1733166075047,0.2576223,95637.0,95636.0,0.00231616]
[1733166075279,0.2586223,95637.0,95636.0,0.00931616]
[1733166075510,0.2576223,95637.0,95636.0,0.00631616]
[1733166076008,0.2586223,95637.0,95636.0,0.00931616]
[1733166076240,0.2576223,95637.0,95636.0,0.00631616]
[1733166076476,0.2576223,95637.0,95636.0,0.00231616]
[1733166076717,0.2576223,95637.0,95636.0,0.00631616]
[1733166077200,0.2576223,95637.0,95636.0,0.00231616]
[1733166077670,0.2576223,95637.0,95636.0,0.00931616]
[1733166077913,0.47501953,95637.0,95636.0,0.00531616]
[1733166078140,0.62501953,95637.0,95636.0,0.00231616]
[1733166078376,0.62501953,95637.0,95636.0,0.00831616]
[1733166078600,0.5365223,95637.0,95636.0,0.00431616]
[1733166078832,0.5365223,95637.0,95636.0,0.00493397]
[1733166078833,0.32423235,95637.0,95636.0,0.00493397]
[1733166079059,0.4076223,95637.0,95636.0,0.00893397]
[1733166079282,0.4076223,95637.0,95636.0,0.00493397]
[1733166079527,0.4076223,95637.0,95636.0,0.00193397]
[1733166079801,0.4096223,95637.0,95636.0,0.00193397]
[1733166080756,0.4096223,95637.0,95636.0,0.00493397]
[1733166081009,0.17423235,95637.0,95636.0,0.00493397]
[1733166081233,0.25993587,95637.0,95636.0,0.00493397]
[1733166081470,0.2576223,95637.0,95636.0,0.00193397]
[1733166081730,0.2576223,95637.0,95636.0,0.00593397]
[1733166083135,0.2576223,95637.0,95636.0,0.00893397]
[1733166083802,0.2576223,95637.0,95636.0,0.00593397]
[1733166084038,0.2576223,95637.0,95636.0,0.00893397]
[1733166084531,0.49611953,95637.0,95636.0,0.00893397]
[1733166085253,0.4076223,95637.0,95636.0,0.00893397]
[1733166085486,0.4076223,95637.0,95636.0,0.00493397]
[1733166085720,0.54419084,95637.0,95636.0,0.00493397]
[1733166085967,0.54519084,95637.0,95636.0,0.00493397]
[1733166086191,0.54419084,95637.0,95636.0,0.00493397]
[1733166086681,0.54419084,95637.0,95636.0,0.00193397]
[1733166086910,0.5361223,95637.0,95636.0,0.00193397]
[1733166087169,0.5361223,95637.0,95636.0,0.00293397]
[1733166087667,0.5361223,95637.0,95636.0,0.00193397]
[1733166088173,0.54419084,95637.0,95636.0,0.00193397]
[1733166088415,0.6470223,95637.0,95636.0,0.00193397]
[1733166088653,0.64095376,95637.0,95636.0,0.00193397]
[1733166088919,0.6490223,95637.0,95636.0,0.00193397]
[1733166089643,0.54619084,95637.0,95636.0,0.00193397]
[1733166089882,0.5381223,95637.0,95636.0,0.00193397]
[1733166090886,0.5361223,95637.0,95636.0,0.00193397]
[1733166091400,0.5381223,95637.0,95636.0,0.00193397]
[1733166091885,0.5401223,95637.0,95636.0,0.00193397]
[1733166092369,0.64295376,95637.0,95636.0,0.00193397]
[1733166092617,0.63895376,95637.0,95636.0,0.00193397]
[1733166093850,0.63895376,95637.0,95636.0,0.001934]
[1733166095365,0.64095376,95637.0,95636.0,0.001934]
[1733166095601,0.63895376,95637.0,95636.0,0.001934]
[1733166096089,0.64095376,95637.0,95636.0,0.001934]
[1733166096590,0.5381223,95637.0,95636.0,0.001934]
[1733166096838,0.84096751,95637.0,95636.0,0.001934]
[1733166097081,0.8167483,95636.0,95620.0,0.0142879]
[1733166097312,0.9702922,95636.0,95635.0,6e-07]
[1733166098483,0.9722922,95636.0,95635.0,6e-07]
[1733166099220,1.07512366,95636.0,95635.0,6e-07]
[1733166099466,1.0831922,95636.0,95635.0,6e-07]
[1733166099695,1.07512366,95636.0,95635.0,6e-07]
[1733166099922,1.0831922,95636.0,95635.0,6e-07]
[1733166100412,1.1641922,95636.0,95635.0,6e-07]
[1733166101104,1.1641922,95636.0,95629.0,6e-07]
[1733166101105,0.6641613,95630.0,95629.0,6e-07]
[1733166101347,0.92650868,95630.0,95629.0,6e-07]
[1733166101573,0.93583803,95630.0,95629.0,6e-07]
[1733166102539,0.94483803,95630.0,95629.0,0.0010006]
[1733166103020,1.33583803,95630.0,95629.0,6e-07]
[1733166103239,0.2576223,95621.0,95620.0,5e-07]
[1733166103470,0.2576223,95621.0,95600.0,9e-05]
[1733166103471,0.7442243,95601.0,95600.0,9e-05]
[1733166104207,0.6168243,95601.0,95600.0,9e-05]
[1733166104444,0.61630149,95601.0,95600.0,9e-05]
[1733166104891,0.61630149,95601.0,95600.0,0.00226553]
[1733166105600,0.69430366,95601.0,95600.0,0.00526553]
[1733166105831,0.61630149,95601.0,95600.0,0.00526553]
[1733166107249,0.44206914,95601.0,95600.0,0.00526553]
[1733166107506,0.61630149,95601.0,95600.0,0.00526553]
[1733166111506,0.61630149,95601.0,95600.0,0.00613263]
[1733166111732,0.61803569,95601.0,95600.0,0.00613263]
[1733166115833,0.72086715,95601.0,95600.0,0.00613263]
[1733166116523,0.61803569,95601.0,95600.0,0.00613263]
[1733166116732,0.61803569,95601.0,95600.0,0.00413263]
[1733166116947,0.61803569,95601.0,95600.0,0.00613263]
[1733166117405,0.61803569,95601.0,95600.0,0.00313263]
[1733166117617,0.61803569,95601.0,95596.0,0.00079813]
[1733166117832,0.209211,95597.0,95596.0,0.00097364]
[1733166118052,0.61631049,95597.0,95596.0,0.00097364]
[1733166119274,0.61631049,95597.0,95596.0,0.00297364]
[1733166119764,0.66531049,95597.0,95596.0,0.00297364]
[1733166119970,0.66531049,95597.0,95596.0,0.00497364]
[1733166120646,0.61631049,95597.0,95596.0,0.00497364]
[1733166120884,0.53344335,95597.0,95596.0,0.00497364]
[1733166122657,0.359211,95597.0,95596.0,0.00497364]
[1733166122926,0.209211,95597.0,95596.0,0.10781885]
[1733166123887,0.209211,95597.0,95596.0,0.10581885]
[1733166124105,0.209211,95597.0,95596.0,0.10881885]
[1733166124328,0.209211,95597.0,95596.0,0.10681885]
[1733166124558,0.210211,95597.0,95596.0,0.10981885]
[1733166124815,0.210211,95597.0,95596.0,0.10681885]
[1733166125044,0.209211,95597.0,95596.0,0.10681885]
[1733166125284,0.210211,95597.0,95596.0,0.10981885]
[1733166125768,0.209211,95597.0,95596.0,0.10381885]
[1733166125996,0.210211,95597.0,95596.0,0.10681885]
[1733166126180,0.210211,95597.0,95596.0,0.10981885]
[1733166127419,0.209211,95597.0,95596.0,0.10681885]
[1733166127664,0.209211,95597.0,95596.0,0.10881885]
[1733166127900,0.209211,95597.0,95596.0,0.10681885]
[1733166128405,0.209211,95597.0,95596.0,0.11181885]
[1733166128406,0.210211,95597.0,95596.0,0.11181885]
[1733166130143,0.42076946,95597.0,95596.0,0.00897364]
[1733166130394,0.74500181,95597.0,95596.0,0.00897364]
[1733166130620,0.74741049,95597.0,95596.0,0.00897364]
[1733166131833,0.360211,95597.0,95596.0,0.00897364]
[1733166132073,0.53444335,95597.0,95596.0,0.00897364]
[1733166132518,0.210211,95597.0,95596.0,0.11181885]
[1733166135313,0.2119404,95597.0,95596.0,0.11181885]
[1733166136264,0.46903989,95597.0,95596.0,0.00897364]
[1733166136488,0.55073989,95597.0,95596.0,0.00897364]
[1733166139055,0.802378,95597.0,95596.0,0.00897364]
[1733166139511,0.70073989,95597.0,95596.0,0.00897364]
[1733166146978,0.70073989,95597.0,95596.0,0.00957741]
[1733166147899,0.61787275,95597.0,95596.0,0.00957741]
[1733166148126,0.2119404,95597.0,95596.0,0.00957741]
[1733166148353,0.2119404,95597.0,95596.0,0.11242262]
[1733166156463,0.29453034,95597.0,95596.0,0.00957741]
[1733166156690,0.78370409,95597.0,95596.0,0.00957741]
[1733166156935,0.69846269,95597.0,95596.0,0.00957741]
[1733166161229,0.53589555,95597.0,95596.0,0.00957741]
[1733166162161,0.53589555,95597.0,95596.0,0.00957752]
[1733166163519,0.66469555,95597.0,95596.0,0.00957752]
[1733166164196,0.74756269,95597.0,95596.0,0.00957752]
[1733166168459,0.74756269,95597.0,95596.0,5.2e-07]
[1733166168955,0.209261,95574.0,95573.0,6e-05]
[1733166169149,0.209261,95574.0,95573.0,0.10290521]
[1733166170977,0.210261,95574.0,95573.0,0.10290521]
[1733166172599,0.211261,95574.0,95573.0,0.10990521]
[1733166178782,0.002,95574.0,95573.0,0.14389573]
[1733166181434,0.002,95574.0,95573.0,0.22179573]
[1733166182363,0.002,95574.0,95573.0,0.22266043]
[1733166187957,0.00190433,95597.0,95579.0,0.023]
[1733166188178,0.08286714,95612.0,95573.0,0.43515852]
[1733166188179,0.17423235,95629.0,95602.0,0.14290051]
[1733166188399,0.209159,95621.0,95611.0,0.023]
[1733166188615,0.209156,95623.0,95613.0,0.023]
[1733166188830,0.209143,95628.0,95619.0,0.023]
[1733166189071,0.00017574,95629.0,95621.0,0.023]
[1733166189312,0.209155,95623.0,95622.0,0.15014302]
[1733166189555,0.209153,95624.0,95623.0,0.023]
[1733166189773,0.209144,95628.0,95623.0,0.023]
[1733166189774,0.00017574,95629.0,95623.0,0.12584521]
[1733166189993,0.00017574,95629.0,95624.0,0.10284521]
[1733166190220,0.00017574,95629.0,95625.0,0.023]
[1733166190470,0.209143,95628.0,95626.0,0.13877571]
[1733166190691,0.00017574,95629.0,95627.0,0.023]
[1733166190961,0.00017574,95629.0,95628.0,0.12584521]
[1733166191896,0.00117574,95629.0,95628.0,0.12584521]
[1733166192153,0.00017574,95629.0,95628.0,0.12584521]
[1733166193566,0.00017574,95629.0,95628.0,0.13484521]
[1733166193567,0.00117574,95629.0,95628.0,0.13484521]
[1733166193830,0.00117574,95629.0,95628.0,0.15075951]
[1733166194069,0.00290514,95629.0,95628.0,0.15075951]
[1733166195540,0.21204614,95629.0,95628.0,0.11184521]
[1733166195763,0.59314563,95629.0,95628.0,0.009]
[1733166196018,0.74314563,95629.0,95628.0,0.009]
[1733166196256,0.0764,95608.0,95585.0,0.11713286]
[1733166196514,0.209197,95604.0,95586.0,0.10284521]
[1733166196760,0.0787142,95608.0,95587.0,0.03230457]
[1733166196996,0.209216,95595.0,95588.0,0.10284521]
[1733166197222,0.209209,95598.0,95588.0,0.10284521]
[1733166197456,0.209209,95598.0,95589.0,0.0812205]
[1733166197680,0.25063235,95616.0,95594.0,0.023]
[1733166197917,0.25063235,95616.0,95596.0,0.023]
[1733166197918,0.209196,95605.0,95596.0,0.023]
[1733166198158,0.0476,95622.0,95596.0,0.023]
[1733166198159,0.0476,95622.0,95603.0,0.209198]
[1733166198384,0.08286714,95633.0,95605.0,0.023]
[1733166198385,0.209159,95621.0,95605.0,0.023]
[1733166198613,0.0017294,95629.0,95609.0,0.10284521]
[1733166198844,0.209152,95625.0,95614.0,0.023]
[1733166199074,0.209152,95625.0,95616.0,0.023]
[1733166199361,0.209143,95628.0,95618.0,0.023]
[1733166199588,0.0017294,95629.0,95618.0,0.023]
[1733166199589,0.209163,95619.0,95618.0,0.023]
[1733166199816,0.209163,95619.0,95618.0,0.14320869]
[1733166200486,0.209161,95621.0,95619.0,0.023]
[1733166200720,0.001,95628.0,95621.0,0.023]
[1733166200944,0.001,95628.0,95627.0,0.023]
[1733166201161,0.001,95628.0,95627.0,0.12584521]
[1733166201602,0.0017294,95629.0,95627.0,0.12584521]
[1733166201914,0.0017294,95629.0,95628.0,0.12584521]
[1733166202570,0.00190514,95629.0,95628.0,0.12584521]
[1733166202794,0.00190514,95629.0,95628.0,0.15044302]
[1733166203057,0.00190514,95629.0,95628.0,0.12584521]
[1733166203762,0.00190514,95629.0,95628.0,0.12784521]
[1733166204006,0.00290514,95629.0,95628.0,0.13084521]
[1733166204456,0.21204614,95629.0,95628.0,0.13084521]
[1733166204687,0.21204614,95629.0,95628.0,0.15564302]
[1733166205143,0.21204614,95629.0,95628.0,0.10784521]
[1733166206480,0.33674614,95629.0,95628.0,0.10784521]
[1733166207389,0.21204614,95629.0,95628.0,0.10784521]
[1733166207611,0.21204614,95629.0,95628.0,0.10584521]
[1733166207843,0.21104614,95629.0,95628.0,0.10384521]
[1733166208068,0.21104614,95629.0,95628.0,0.10684521]
[1733166209220,0.21104614,95629.0,95628.0,0.10584521]
[1733166209450,0.21104614,95629.0,95628.0,0.10484521]
[1733166209934,0.21204614,95629.0,95628.0,0.10784521]
[1733166218316,0.21204614,95629.0,95628.0,0.10870961]
[1733166218567,0.21204614,95629.0,95628.0,0.10911339]
[1733166219268,0.00290514,95629.0,95628.0,0.10911339]
[1733166219745,0.00290514,95629.0,95628.0,0.13211339]
[1733166219975,0.00206068,95629.0,95628.0,0.13211339]
[1733166220676,0.00206068,95629.0,95628.0,0.16633934]
[1733166221378,0.00206068,95629.0,95628.0,0.38803985]
[1733166221607,0.00206068,95629.0,95628.0,0.42056946]
[1733166221830,0.00206068,95629.0,95628.0,0.42056904]
[1733166222068,0.00106068,95629.0,95628.0,0.41556904]
[1733166222587,0.00306068,95629.0,95628.0,0.42456904]
[1733166222837,0.00306068,95629.0,95628.0,0.41556904]
[1733166222838,0.00106068,95629.0,95628.0,0.41556904]
[1733166223323,0.00206068,95629.0,95628.0,0.42356904]
[1733166224084,0.00306068,95629.0,95628.0,0.34776904]
[1733166224305,0.00306068,95629.0,95628.0,0.19810699]
[1733166224502,0.00306068,95629.0,95628.0,0.17233934]
[1733166224759,0.00306068,95629.0,95628.0,0.19810699]
[1733166224991,0.00306068,95629.0,95628.0,0.17233934]
[1733166225476,0.00306068,95629.0,95628.0,0.19810699]
[1733166225923,0.00306068,95629.0,95628.0,0.31523985]
[1733166226622,0.00306068,95629.0,95628.0,0.34778746]
[1733166227530,0.001,95629.0,95628.0,0.34778746]
[1733166227771,0.20909,95653.0,95628.0,0.34778746]
[1733166227772,0.209086,95655.0,95643.0,0.023]
[1733166228000,0.17423235,95667.0,95646.0,0.0239974]
[1733166228227,0.209086,95654.0,95648.0,0.023]
[1733166228443,0.209089,95653.0,95649.0,0.10284521]
[1733166228665,0.209089,95653.0,95650.0,0.023]
[1733166228893,0.209089,95653.0,95652.0,0.023]
[1733166229130,0.209089,95653.0,95652.0,0.12584521]
[1733166230291,0.209089,95653.0,95652.0,0.12784521]
[1733166230541,0.209089,95653.0,95652.0,0.13184521]
[1733166230781,0.00105997,95653.0,95652.0,0.13184521]
[1733166231028,0.00105997,95653.0,95652.0,0.1467938]
[1733166233603,0.21014897,95653.0,95652.0,0.13224894]
[1733166233861,0.00105997,95653.0,95652.0,0.13224894]
[1733166234336,0.00105997,95653.0,95652.0,0.2493818]
[1733166234793,0.00105997,95653.0,95652.0,0.27514944]
[1733166235023,0.00105997,95653.0,95652.0,0.32204944]
[1733166235261,0.00105997,95653.0,95652.0,0.42483332]
[1733166235476,0.00105997,95653.0,95652.0,0.42083332]
[1733166235706,0.00205997,95653.0,95652.0,0.57983332]
[1733166235923,0.00205997,95653.0,95652.0,0.57983331]
[1733166236143,0.00105997,95653.0,95652.0,0.57083331]
[1733166236370,0.00205997,95653.0,95652.0,0.57983331]
[1733166236842,0.00205997,95653.0,95652.0,0.57783331]
[1733166237749,0.00205997,95653.0,95652.0,0.5778333]
[1733166238030,0.00205997,95653.0,95652.0,0.5838333]
[1733166238472,0.00205997,95653.0,95652.0,0.5778333]
[1733166238928,0.00205997,95653.0,95652.0,0.58483329]
[1733166241092,0.00205997,95653.0,95652.0,0.58483328]
[1733166242902,0.20551265,95663.0,95662.0,0.11713286]
[1733166243117,0.209065,95664.0,95663.0,0.023]
[1733166243350,0.209061,95666.0,95663.0,0.12624889]
[1733166243571,0.209061,95666.0,95665.0,0.12584521]
[1733166243800,0.209061,95666.0,95665.0,0.15298519]
[1733166244025,0.00017563,95667.0,95666.0,0.023]
[1733166244273,0.00017563,95667.0,95666.0,0.12624889]
[1733166244709,0.00017563,95667.0,95666.0,0.12624888]
[1733166245145,0.00017563,95667.0,95666.0,0.12924888]
[1733166245381,0.00017563,95667.0,95666.0,0.15332858]
[1733166246522,0.00117563,95667.0,95666.0,0.27746144]
[1733166246799,0.256507,95691.0,95679.0,0.14013286]
[1733166247008,0.209013,95688.0,95683.0,0.10284521]
[1733166247231,0.209013,95688.0,95684.0,0.04729781]
[1733166247423,0.209013,95688.0,95686.0,0.023]
[1733166247698,0.209013,95688.0,95687.0,0.12584521]
[1733166248645,0.209013,95688.0,95683.0,0.00139436]
[1733166248646,0.209021,95684.0,95683.0,0.00139436]
[1733166248880,0.59002049,95684.0,95683.0,0.00040366]
[1733166249121,0.74002049,95684.0,95683.0,0.00040366]
[1733166249369,0.209106,95645.0,95644.0,0.01765137]
[1733166249604,0.209103,95647.0,95644.0,0.10284521]
[1733166249824,0.209103,95647.0,95646.0,0.10284521]
[1733166250281,0.209095,95650.0,95647.0,0.023]
[1733166250520,0.209095,95650.0,95648.0,0.12720159]
[1733166250744,0.209095,95650.0,95649.0,0.023]
[1733166250972,0.209095,95650.0,95649.0,0.12584521]
[1733166252356,0.209095,95650.0,95649.0,0.13084521]
[1733166252792,0.209095,95650.0,95649.0,0.13984521]
[1733166252793,0.210095,95650.0,95649.0,0.13984521]
[1733166253011,0.210095,95650.0,95649.0,0.16978599]
[1733166254676,0.0017284,95655.0,95649.0,0.16978599]
[1733166254677,0.0017284,95655.0,95654.0,0.023]
[1733166254896,0.0017284,95655.0,95654.0,0.24297807]
[1733166255788,0.0027284,95655.0,95654.0,0.24897807]
[1733166256269,0.0027284,95655.0,95654.0,0.25197807]
[1733166256493,0.0027284,95655.0,95654.0,0.33234472]
[1733166258525,0.0027284,95655.0,95654.0,0.21521186]
[1733166258747,0.0027284,95655.0,95654.0,0.11184521]
[1733166261705,0.0027284,95655.0,95654.0,0.13484521]
[1733166261926,0.0027284,95655.0,95654.0,0.25197807]
[1733166262375,0.0027284,95655.0,95654.0,0.13484521]
[1733166262595,0.0027284,95655.0,95654.0,0.12532973]
[1733166262812,0.0027284,95655.0,95654.0,0.11184521]
[1733166263759,0.0027284,95655.0,95654.0,0.32697807]
[1733166264013,0.0027284,95655.0,95654.0,0.35957621]
[1733166264729,0.0017284,95655.0,95654.0,0.35057621]
[1733166264987,0.0027284,95655.0,95654.0,0.36657621]
[1733166265232,0.0027284,95655.0,95654.0,0.46940767]
[1733166267380,0.0027284,95655.0,95654.0,0.88406137]
[1733166268830,0.0027284,95655.0,95654.0,0.46940767]
[1733166269045,0.0027284,95655.0,95654.0,0.88406137]
[1733166269266,0.0027284,95655.0,95654.0,0.48663303]
[1733166269494,0.0027284,95655.0,95654.0,0.90128673]
[1733166269714,0.0027284,95655.0,95654.0,0.27620343]
[1733166271519,0.0027284,95655.0,95654.0,0.76875713]
[1733166271734,0.0027284,95655.0,95654.0,0.308809]
[1733166271947,0.0027284,95655.0,95654.0,0.60749171]
[1733166272169,0.0027284,95655.0,95654.0,0.25252955]
[1733166272409,0.0027284,95655.0,95654.0,0.11884521]
[1733166274876,0.0017284,95655.0,95654.0,0.10284521]
[1733166275380,0.0017284,95655.0,95654.0,0.10684521]
[1733166276336,0.0017284,95655.0,95654.0,0.11384521]
[1733166276781,0.0017284,95655.0,95654.0,0.10984521]
[1733166277229,0.30987377,95655.0,95654.0,0.11284521]
[1733166277450,0.30756075,95655.0,95654.0,0.10584521]
[1733166277669,0.30756075,95655.0,95654.0,0.10284521]
[1733166277886,0.30756075,95655.0,95654.0,0.10684521]
[1733166278318,0.30756075,95655.0,95654.0,0.11284521]
[1733166278541,0.25856075,95655.0,95654.0,0.10684521]
[1733166278773,0.25856075,95655.0,95654.0,0.11484521]
[1733166279221,0.25856075,95655.0,95654.0,0.10684521]
[1733166279436,0.25856075,95655.0,95654.0,0.10984521]
[1733166279887,0.25856075,95655.0,95654.0,0.10584521]
[1733166280337,0.25856075,95655.0,95654.0,0.10684521]
[1733166280779,0.25856075,95655.0,95654.0,0.10584521]
[1733166281008,0.25856075,95655.0,95654.0,0.10384521]
[1733166281453,0.25856075,95655.0,95654.0,0.10584521]
[1733166281671,0.25856075,95655.0,95654.0,0.10384521]
[1733166282118,0.25856075,95655.0,95654.0,0.10484521]
[1733166283312,0.25856075,95655.0,95654.0,0.13841615]
[1733166283313,0.0017284,95655.0,95654.0,0.13841615]
[1733166283543,0.0017284,95655.0,95654.0,0.12784521]
[1733166288254,0.0017284,95655.0,95654.0,0.10484521]
[1733166288497,0.30136075,95655.0,95654.0,0.10484521]
[1733166289891,0.38422789,95655.0,95654.0,0.002]
[1733166290572,0.30136075,95655.0,95654.0,0.002]
[1733166291023,0.30136075,95655.0,95654.0,0.10484521]
[1733166293692,0.25486075,95655.0,95654.0,0.10484521]
[1733166294128,0.0017284,95655.0,95654.0,0.13841615]
[1733166296152,0.0017284,95655.0,95654.0,0.25554901]
[1733166296381,0.0017284,95655.0,95654.0,0.33664901]
[1733166296823,0.0017284,95655.0,95654.0,0.25554901]
[1733166297064,0.2108124,95655.0,95654.0,0.25554901]
[1733166297297,0.2108124,95655.0,95654.0,0.12784521]
[1733166297538,0.2108124,95655.0,95654.0,0.12684521]
[1733166297757,0.2108124,95655.0,95654.0,0.13084521]
[1733166299062,0.2108124,95655.0,95654.0,0.12984521]
[1733166299282,0.2108124,95655.0,95654.0,0.11484521]
[1733166299519,0.51411189,95655.0,95654.0,0.012]
[1733166299734,0.59671189,95655.0,95654.0,0.012]
[1733166300181,0.74671189,95655.0,95654.0,0.004]
[1733166300395,0.74671189,95655.0,95654.0,0.00626958]
[1733166300624,0.74671189,95655.0,95654.0,0.00926958]
[1733166300844,0.74671189,95655.0,95654.0,0.00326958]
[1733166302216,0.74671189,95655.0,95654.0,0.00026958]
[1733166302665,0.74671189,95655.0,95654.0,0.00126958]
[1733166302886,0.74671189,95655.0,95654.0,0.00226958]
[1733166305561,0.84229068,95655.0,95654.0,0.00226958]
[1733166305795,0.74671189,95655.0,95654.0,0.00226958]
[1733166307015,0.74671189,95655.0,95654.0,0.00026958]
[1733166307898,0.74671189,95655.0,95654.0,0.00126958]